bitfinex/quotes_ETHUSD_20211001
["timestamp","ask_amount","ask_price","bid_price","bid_amount"]
[1633082017658,0.23903166,3111.5,3111.4,6.4288]
[1633082017857,5.06100166,3111.5,3111.4,6.4288]
[1633082018565,4.82197,3111.5,3111.4,6.4288]
[1633082020955,5.06092194,3111.5,3111.4,6.4288]
[1633082022155,0.23895194,3111.5,3111.4,6.4288]
[1633082022365,5.06096194,3111.5,3111.4,6.4288]
[1633082022556,5.06096194,3111.5,3111.4,7.61342281]
[1633082022759,5.06096194,3111.5,3111.4,6.4288]
[1633082023056,5.06096194,3111.5,3111.4,6.2788]
[1633082023957,4.82201,3111.5,3111.4,6.2788]
[1633082024560,4.901923,3111.5,3111.4,6.2788]
[1633082024758,5.901923,3111.5,3111.4,6.2788]
[1633082024960,13.901923,3111.5,3111.4,6.2788]
[1633082025561,14.95021586,3111.5,3111.4,6.2788]
[1633082026158,5.901923,3111.5,3111.4,6.2788]
[1633082026361,5.82201,3111.5,3111.4,6.2788]
[1633082026559,6.06098187,3111.5,3111.4,6.2788]
[1633082027559,7.07964559,3111.5,3111.4,6.2788]
[1633082027762,6.06098187,3111.5,3111.4,6.2788]
[1633082028562,6.06098187,3111.5,3111.4,6.8345089]
[1633082028760,6.06098187,3111.5,3111.4,6.2788]
[1633082029364,4.82201,3111.5,3111.4,6.89178677]
[1633082029564,4.82201,3111.5,3111.4,6.2788]
[1633082029963,5.82201,3111.5,3111.4,6.2788]
[1633082031962,6.06096194,3111.5,3111.4,6.2788]
[1633082033167,5.06096194,3111.5,3111.4,6.2788]
[1633082033363,5.99929604,3111.5,3111.4,6.2788]
[1633082033564,6.99929604,3111.5,3111.4,6.2788]
[1633082034767,6.7603441,3111.5,3111.4,6.2788]
[1633082036569,5.7603441,3111.5,3111.4,6.2788]
[1633082036769,4.82201,3111.5,3111.4,6.2788]
[1633082037572,5.06096194,3111.5,3111.4,6.2788]
[1633082038380,5.99995453,3111.5,3111.4,6.2788]
[1633082038772,8.03731634,3111.5,3111.4,6.2788]
[1633082040172,7.7983644,3111.5,3111.4,6.2788]
[1633082043075,8.03731634,3111.5,3111.4,6.2788]
[1633082043877,6.99995453,3111.5,3111.4,6.2788]
[1633082044479,0.23895194,3111.5,3111.4,9.72957482]
[1633082044678,0.23895194,3111.5,3111.4,8.29923735]
[1633082044877,0.23895194,3111.5,3111.4,11.83989627]
[1633082045077,0.23895194,3111.5,3111.4,11.7608737]
[1633082045277,0.23895194,3111.5,3111.4,11.87540658]
[1633082045479,0.23895194,3111.5,3111.4,11.83973737]
[1633082045678,0.23895194,3111.5,3111.4,11.87294618]
[1633082045881,3.21503,3111.8,3111.4,11.81629434]
[1633082046081,3.21503,3111.8,3111.5,1.78206763]
[1633082046286,0.003,3112.0,3111.6,7.91021974]
[1633082046480,0.003,3112.0,3111.9,0.77772447]
[1633082046678,0.003,3112.0,3111.9,7.05652447]
[1633082047083,0.003,3112.0,3111.9,9.19442129]
[1633082047280,0.003,3112.0,3111.9,7.05652447]
[1633082047688,0.003,3112.0,3111.9,9.12798044]
[1633082047880,0.003,3112.0,3111.9,7.05652447]
[1633082048283,0.003,3112.0,3111.9,6.2788]
[1633082048483,0.93845084,3112.0,3111.9,6.2788]
[1633082048696,1.17722343,3112.0,3111.9,6.2788]
[1633082049082,5.99866343,3112.0,3111.9,6.2788]
[1633082049342,6.7432431,3112.0,3111.9,6.2788]
[1633082049493,6.99866343,3112.0,3111.9,6.2788]
[1633082050282,6.99681069,3112.0,3111.9,6.2788]
[1633082050484,5.06321259,3112.0,3111.9,6.2788]
[1633082051483,4.82444,3112.0,3111.9,6.2788]
[1633082051684,4.82444,3112.0,3111.9,8.46307833]
[1633082051882,4.82444,3112.0,3111.9,8.47342814]
[1633082052088,4.82444,3112.0,3111.9,8.48702388]
[1633082052483,4.82444,3112.0,3111.9,6.42956884]
[1633082052693,4.82444,3112.0,3111.9,8.49558694]
[1633082052885,4.82444,3112.0,3111.9,6.42956884]
[1633082053890,4.82444,3112.0,3111.9,6.2788]
[1633082054086,0.24177259,3112.0,3111.9,6.2788]
[1633082056285,0.24177259,3112.0,3111.9,7.5728]
[1633082056504,0.003,3112.5,3112.2,1.7118321]
[1633082056690,0.003,3112.5,3112.3,6.2788]
[1633082057090,0.003,3112.5,3112.4,0.192]
[1633082057291,0.003,3112.5,3112.4,14.817492]
[1633082057495,0.003,3112.5,3112.4,14.87127838]
[1633082057706,0.003,3112.5,3112.4,12.12651043]
[1633082057886,0.003,3112.5,3112.4,11.57452958]
[1633082058085,0.003,3112.5,3112.4,12.16530881]
[1633082058286,0.003,3112.5,3112.4,11.57452958]
[1633082058492,0.003,3112.5,3112.4,12.10066993]
[1633082058694,0.003,3112.5,3112.4,12.1128722]
[1633082058889,0.003,3112.5,3112.4,10.95332122]
[1633082059094,0.003,3112.5,3112.4,9.66482278]
[1633082059292,0.003,3112.5,3112.4,7.95143044]
[1633082059491,0.003,3112.5,3112.4,9.27322283]
[1633082059690,0.07218707,3112.5,3112.4,10.89569603]
[1633082059889,0.07218707,3112.5,3112.4,11.01596266]
[1633082060091,0.07218707,3112.5,3112.4,11.0244577]
[1633082060291,0.07218707,3112.5,3112.4,10.86306206]
[1633082060491,0.07218707,3112.5,3112.4,11.96116875]
[1633082060691,0.07218707,3112.5,3112.4,11.0094822]
[1633082060890,0.07218707,3112.5,3112.4,10.89509458]
[1633082061091,0.07218707,3112.5,3112.4,10.9640965]
[1633082061358,0.07218707,3112.5,3112.4,10.39167078]
[1633082061492,0.07218707,3112.5,3112.4,10.94353169]
[1633082061694,0.07218707,3112.5,3112.4,10.92838908]
[1633082061892,8.707e-05,3112.5,3112.4,8.30093278]
[1633082062091,8.707e-05,3112.5,3112.4,9.9950177]
[1633082062502,0.003,3113.0,3112.4,9.9950177]
[1633082062692,0.003,3113.0,3112.5,1.63176143]
[1633082062902,0.003,3113.0,3112.7,3.2131978]
[1633082063093,0.003,3113.0,3112.8,6.81871621]
[1633082063295,4.82291,3113.0,3112.8,6.81871621]
[1633082063693,0.003,3113.0,3112.8,6.81871621]
[1633082064896,4.82291,3113.0,3112.8,6.81871621]
[1633082065093,4.88234792,3113.0,3112.8,6.81871621]
[1633082066696,0.06243792,3113.0,3112.8,6.81871621]
[1633082067896,0.003,3113.0,3112.8,6.81871621]
[1633082068095,0.003,3113.0,3112.9,0.32997882]
[1633082068308,0.003,3113.0,3112.9,6.60877882]
[1633082068697,4.8228,3113.0,3112.9,6.60877882]
[1633082069098,0.003,3113.0,3112.9,6.60877882]
[1633082069501,0.00186951,3113.0,3112.9,9.99772129]
[1633082069698,0.00186951,3113.0,3112.9,8.70259295]
[1633082070107,0.00186951,3113.0,3112.9,8.89459295]
[1633082070508,3.14508951,3113.3,3113.0,0.78900547]
[1633082070700,3.14508951,3113.3,3113.1,8.29035088]
[1633082070903,3.14508951,3113.3,3113.1,6.2788]
[1633082073499,0.010952,3113.2,3113.1,6.2788]
[1633082075299,0.010952,3113.2,3113.1,8.3943902]
[1633082075900,0.010952,3113.2,3113.1,6.2788]
[1633082076100,0.07087444,3113.2,3113.1,6.2788]
[1633082076502,0.07087444,3113.2,3113.1,8.3276637]
[1633082076703,0.07087444,3113.2,3113.1,6.2788]
[1633082076905,0.07087444,3113.2,3113.1,8.30291507]
[1633082077104,0.07087444,3113.2,3113.1,6.2788]
[1633082077309,0.07087444,3113.2,3113.1,8.2987214]
[1633082077503,0.07087444,3113.2,3113.1,8.29884514]
[1633082077804,0.07087444,3113.2,3113.1,6.2788]
[1633082078105,0.07087444,3113.2,3113.1,8.30205555]
[1633082078704,0.07087444,3113.2,3113.1,6.2788]
[1633082078906,0.010952,3113.2,3113.1,6.2788]
[1633082079103,0.010952,3113.2,3113.1,8.64073568]
[1633082079509,0.010952,3113.4,3113.1,8.64073568]
[1633082081515,0.010952,3113.4,3113.1,6.2788]
[1633082081709,0.07081472,3113.4,3113.1,8.32030185]
[1633082081916,0.07081472,3113.4,3113.1,6.2788]
[1633082082107,0.07081472,3113.4,3113.1,8.32688873]
[1633082083112,0.07081472,3113.4,3113.3,0.76524068]
[1633082083311,0.07081472,3113.4,3113.3,7.04404068]
[1633082083711,0.07081472,3113.4,3113.3,9.20545853]
[1633082084312,0.07081472,3113.4,3113.3,7.04404068]
[1633082084513,0.010952,3113.4,3113.3,7.04404068]
[1633082085713,0.010952,3113.4,3113.3,9.16042164]
[1633082085924,0.010952,3113.4,3113.3,7.04404068]
[1633082087123,0.0707749,3113.4,3113.3,7.04404068]
[1633082088515,4.8902649,3113.4,3113.3,7.04404068]
[1633082089125,4.88912541,3113.4,3113.3,7.04404068]
[1633082089516,4.88912541,3113.4,3113.3,7.04290335]
[1633082089716,4.88912541,3113.4,3113.3,6.2788]
[1633082090117,4.82930251,3113.4,3113.3,6.2788]
[1633082090718,5.80256224,3113.4,3113.3,6.2788]
[1633082092519,5.86238514,3113.4,3113.3,6.2788]
[1633082093121,6.94229814,3113.4,3113.3,6.2788]
[1633082093321,8.05679226,3113.4,3113.3,6.2788]
[1633082095324,8.05679226,3113.4,3113.3,6.22766266]
[1633082095530,9.45966266,3113.3,3112.5,0.003]
[1633082095728,0.079913,3112.7,3112.5,0.003]
[1633082095935,0.271913,3112.7,3112.6,6.4255]
[1633082096126,1.234713,3112.7,3112.6,6.4255]
[1633082096325,2.96343753,3112.7,3112.6,6.4255]
[1633082096527,3.96343753,3112.7,3112.6,6.4255]
[1633082097530,10.39232753,3112.7,3112.6,6.4255]
[1633082098138,10.45242919,3112.7,3112.6,6.4255]
[1633082101130,10.29232753,3112.7,3112.6,6.4255]
[1633082102736,9.29232753,3112.7,3112.6,6.4255]
[1633082103731,9.35242919,3112.7,3112.6,6.4255]
[1633082103930,10.35242919,3112.7,3112.6,6.4255]
[1633082106735,10.29232753,3112.7,3112.6,6.4255]
[1633082108134,10.29232753,3112.7,3112.6,6.4355]
[1633082108539,8.563603,3112.7,3112.6,8.58521424]
[1633082108740,7.39169,3112.7,3112.6,8.58521424]
[1633082108940,7.39169,3112.7,3112.6,6.4355]
[1633082109135,7.45179166,3112.7,3112.6,6.4355]
[1633082109402,1.02290166,3112.7,3112.6,9.8070394]
[1633082109540,0.00981251,3113.1,3112.6,10.7974345]
[1633082109735,0.00981251,3113.1,3112.6,9.5034345]
[1633082109946,0.00981251,3113.1,3112.8,5.26552092]
[1633082110137,0.00981251,3113.1,3112.9,9.01887082]
[1633082110343,0.00981251,3113.1,3113.0,10.77057681]
[1633082110547,0.00981251,3113.1,3113.0,18.34336553]
[1633082110740,0.003,3114.0,3113.2,5.53388785]
[1633082110946,0.003,3114.0,3113.9,4.30406405]
[1633082111142,0.003,3114.0,3113.9,13.17651903]
[1633082111344,0.9300357,3114.5,3113.9,14.5086833]
[1633082111538,0.003,3114.5,3114.4,0.079913]
[1633082111740,0.003,3114.5,3114.4,6.4255]
[1633082112137,0.72527492,3114.5,3114.4,6.4255]
[1633082112338,5.54289492,3114.5,3114.4,6.4255]
[1633082112947,4.82062,3114.5,3114.4,6.4255]
[1633082114542,4.84995428,3114.5,3114.4,6.42381591]
[1633082116143,4.74995428,3114.5,3114.4,6.42381591]
[1633082120145,7.32449725,3114.6,3114.5,0.35989005]
[1633082120146,6.42411,3114.6,3114.5,0.35989005]
[1633082120347,0.90079736,3114.8,3114.5,2.43595895]
[1633082120547,4.21167,3114.9,3114.5,2.43595895]
[1633082120548,4.1128759,3114.9,3114.5,2.43595895]
[1633082120745,3.21167,3114.9,3114.5,2.43595895]
[1633082120947,3.21167,3114.9,3114.6,6.42381591]
[1633082121145,4.81736,3114.7,3114.6,6.42381591]
[1633082121414,5.75493296,3114.7,3114.6,6.42381591]
[1633082121743,5.75493296,3114.7,3114.6,8.48294774]
[1633082122145,5.75493296,3114.7,3114.6,6.42381591]
[1633082122546,4.81736,3114.7,3114.6,8.52079702]
[1633082123146,4.81736,3114.7,3114.6,8.52280107]
[1633082123349,1.48737148,3115.0,3114.6,8.52280107]
[1633082123550,1.20848781,3115.0,3114.8,0.8317548]
[1633082123750,1.20848781,3115.0,3114.9,2.10138723]
[1633082123951,1.20848781,3115.0,3114.8,0.8317548]
[1633082124154,0.003,3115.0,3114.9,8.41883498]
[1633082124552,0.003,3115.0,3114.9,8.26883498]
[1633082124952,0.003,3115.0,3114.9,6.32381591]
[1633082125152,0.91019757,3115.0,3114.9,6.32381591]
[1633082125351,1.81249331,3115.0,3114.9,6.32381591]
[1633082125750,1.8416287,3115.0,3114.9,6.32381591]
[1633082126552,8.28555907,3115.0,3114.9,6.32381591]
[1633082127408,7.38326333,3115.0,3114.9,6.32381591]
[1633082127561,1.8622939,3115.0,3114.9,8.47652361]
[1633082127761,0.96018333,3115.0,3114.9,6.32381591]
[1633082127952,0.96018333,3115.0,3114.9,8.4472089]
[1633082128157,0.96018333,3115.0,3114.9,6.32381591]
[1633082128552,0.96018333,3115.0,3114.9,8.46931915]
[1633082128752,5.77720333,3115.0,3114.9,8.54099972]
[1633082128952,5.77720333,3115.0,3114.9,9.78941818]
[1633082129154,5.77720333,3115.0,3114.9,7.57223437]
[1633082129357,0.96018333,3115.0,3114.9,7.57223437]
[1633082131155,0.93104794,3115.0,3114.9,7.57223437]
[1633082131754,0.88104794,3115.0,3114.9,7.57223437]
[1633082131957,0.88104794,3115.0,3114.9,7.06808168]
[1633082132353,4.11511607,3115.3,3114.9,7.06808168]
[1633082132555,4.11511607,3115.3,3115.0,2.04382417]
[1633082132756,0.90388607,3115.3,3115.1,6.32381591]
[1633082132954,0.90852868,3115.5,3115.1,6.32381591]
[1633082133354,4.81672,3115.4,3115.1,6.32381591]
[1633082133559,5.72217674,3115.4,3115.1,6.32381591]
[1633082133754,1.95729197,3115.5,3115.1,6.32381591]
[1633082133954,1.95750722,3115.5,3115.2,2.1063379]
[1633082134157,1.95750722,3115.5,3115.3,6.32381591]
[1633082134356,4.81662,3115.4,3115.3,6.32381591]
[1633082134954,8.02785,3115.4,3115.3,8.54206726]
[1633082135154,3.21123,3115.4,3115.3,8.54206726]
[1633082135355,0.003,3115.5,3115.3,8.52690033]
[1633082135555,0.003,3115.5,3115.3,6.32381591]
[1633082135756,0.003,3115.5,3115.4,2.05446117]
[1633082135954,0.003,3115.5,3115.4,8.37827708]
[1633082136157,0.003,3115.5,3115.4,6.32381591]
[1633082136416,0.003,3115.5,3115.4,7.13523529]
[1633082136560,0.003,3115.5,3115.4,10.82246433]
[1633082136759,0.03195644,3115.5,3115.4,9.88861398]
[1633082136955,0.03195644,3115.5,3115.4,11.36484603]
[1633082137556,0.03195644,3115.5,3115.4,12.65884603]
[1633082137766,0.03195644,3115.5,3115.4,11.36484603]
[1633082139433,0.03195644,3115.5,3115.4,11.38379278]
[1633082139559,0.03195644,3115.5,3115.4,9.32419227]
[1633082140360,0.03195644,3115.5,3115.4,8.51277289]
[1633082141559,0.03195644,3115.5,3115.4,10.56020401]
[1633082141759,0.03195644,3115.5,3115.4,11.85420401]
[1633082141960,0.03195644,3115.5,3115.4,9.80677289]
[1633082142158,0.003,3115.5,3115.4,9.44662324]
[1633082142428,0.003,3115.5,3115.4,9.01187743]
[1633082142560,0.003,3115.5,3115.4,11.07029036]
[1633082142761,0.003,3115.5,3115.4,9.01187743]
[1633082143158,0.003,3115.5,3115.4,10.30587743]
[1633082143359,0.003,3115.5,3115.4,9.01187743]
[1633082144560,0.003,3115.5,3115.4,12.36743532]
[1633082144762,0.003,3115.5,3115.4,10.30587743]
[1633082145962,0.003,3115.5,3115.4,9.01187743]
[1633082147763,0.03195644,3115.5,3115.4,9.37202738]
[1633082151770,0.03195644,3115.5,3115.4,8.51277319]
[1633082151970,0.03195644,3115.5,3115.4,8.28396586]
[1633082152966,0.03195644,3115.5,3115.4,7.92381591]
[1633082153168,4.81978,3115.5,3115.4,7.92381591]
[1633082158584,4.84873644,3115.5,3115.4,7.92381591]
[1633082158774,4.84873644,3115.5,3115.4,8.28396615]
[1633082161975,0.03195644,3115.5,3115.4,8.28396615]
[1633082162376,0.03195644,3115.5,3115.4,8.32100926]
[1633082164180,0.003,3115.5,3115.4,7.96085902]
[1633082166980,0.003,3115.5,3115.4,8.15285902]
[1633082169780,0.05115644,3115.5,3115.4,8.51300956]
[1633082170378,0.05115644,3115.5,3115.4,13.32821956]
[1633082171379,0.05115644,3115.5,3115.4,8.47596645]
[1633082172782,0.05115644,3115.5,3115.4,9.76996645]
[1633082174580,0.05115644,3115.5,3115.4,8.47596645]
[1633082174978,0.0222,3115.5,3115.4,8.47596645]
[1633082175437,0.0222,3115.5,3115.4,8.11581591]
[1633082175577,0.0222,3115.5,3115.4,9.40981591]
[1633082175783,0.05115644,3115.5,3115.4,9.40981591]
[1633082177681,0.05115644,3115.5,3115.4,14.22499591]
[1633082178886,0.05115644,3115.5,3115.4,14.26182891]
[1633082180483,0.05115644,3115.5,3115.4,12.96782891]
[1633082180684,0.0222,3115.5,3115.4,8.51279974]
[1633082181283,0.0222,3115.5,3115.4,8.15264891]
[1633082181551,0.05115644,3115.5,3115.4,8.15264891]
[1633082181749,0.05115644,3115.5,3115.4,9.07123739]
[1633082181954,0.05115644,3115.5,3115.4,10.92241634]
[1633082182347,0.00115644,3115.5,3115.4,10.92241634]
[1633082182546,0.00115644,3115.5,3115.4,15.73759634]
[1633082185953,0.00115644,3115.5,3115.4,15.72642034]
[1633082186156,3.21042,3115.7,3115.5,0.85598926]
[1633082186355,3.21042,3115.7,3115.6,6.32381591]
[1633082186554,3.21042,3115.7,3115.6,6.36088499]
[1633082186955,3.23519284,3115.7,3115.6,6.36088499]
[1633082188356,3.23519284,3115.7,3115.6,8.43237163]
[1633082188554,3.23519284,3115.7,3115.6,6.36088499]
[1633082189177,3.23519284,3115.7,3115.6,6.32381591]
[1633082190158,3.23519284,3115.7,3115.6,6.3633554]
[1633082191558,3.21042,3115.7,3115.6,8.45406285]
[1633082191758,3.21042,3115.7,3115.6,8.82816852]
[1633082192162,3.21042,3115.7,3115.6,6.73746107]
[1633082192360,3.23519284,3115.7,3115.6,6.3633554]
[1633082193159,3.23519284,3115.7,3115.6,8.45839392]
[1633082193960,3.23519284,3115.7,3115.6,6.3633554]
[1633082194565,3.23519284,3115.7,3115.6,8.44577227]
[1633082194762,3.23519284,3115.7,3115.6,6.3633554]
[1633082197175,3.21042,3115.7,3115.6,6.73746122]
[1633082197766,3.21042,3115.7,3115.6,6.3633554]
[1633082197967,3.23519284,3115.7,3115.6,6.3633554]
[1633082201770,3.23519284,3115.7,3115.6,6.32381591]
[1633082202579,3.21042,3115.7,3115.6,6.32381591]
[1633082202771,3.21042,3115.7,3115.6,6.69792187]
[1633082203374,3.23519284,3115.7,3115.6,6.32381591]
[1633082204979,3.23519284,3115.7,3115.6,6.3551011]
[1633082206576,3.23519284,3115.7,3115.6,6.66197791]
[1633082208175,3.21042,3115.7,3115.6,6.66197791]
[1633082208385,3.21042,3115.7,3115.6,7.03608402]
[1633082208777,3.21042,3115.7,3115.6,6.66197791]
[1633082208977,3.23519284,3115.7,3115.6,6.66197791]
[1633082210182,3.23519284,3115.7,3115.6,6.97089668]
[1633082210983,5.02293153,3114.9,3114.8,0.5548729]
[1633082211183,2.94758885,3114.9,3114.6,0.55491186]
[1633082211453,2.94758885,3114.9,3114.5,2.00546178]
[1633082211454,4.03694677,3114.9,3114.5,2.00546178]
[1633082211582,4.03694677,3114.9,3114.6,6.4214]
[1633082211779,2.94758885,3114.9,3114.6,6.46120982]
[1633082211981,0.003,3114.7,3114.6,1.88789267]
[1633082212184,0.003,3114.7,3114.6,1.92421323]
[1633082212380,0.003,3114.7,3114.2,0.5550287]
[1633082212595,0.003,3114.7,3114.5,0.71036028]
[1633082212787,0.003,3114.6,3114.5,0.74545841]
[1633082213594,4.82036,3114.6,3114.5,7.16705841]
[1633082213783,4.82036,3114.6,3114.5,7.13196028]
[1633082214450,4.8451412,3114.6,3114.5,6.4216]
[1633082214985,0.0277812,3114.6,3114.5,7.41108218]
[1633082215586,0.0277812,3114.6,3114.5,6.4216]
[1633082216589,0.0277812,3114.6,3114.5,7.55110895]
[1633082216787,0.0277812,3114.6,3114.5,7.74310895]
[1633082216986,0.0277812,3114.6,3114.5,7.77657461]
[1633082217786,0.0277812,3114.6,3114.5,9.37657461]
[1633082218187,0.0277812,3114.6,3114.5,17.37657461]
[1633082218986,0.003,3114.6,3114.5,17.37657461]
[1633082219987,0.0277812,3114.6,3114.5,17.37657461]
[1633082220188,0.0277812,3114.6,3114.5,8.24706566]
[1633082220388,0.0277812,3114.6,3114.5,8.2136]
[1633082221390,0.0277812,3114.6,3114.5,9.20480358]
[1633082224394,0.0277812,3114.6,3114.5,8.2136]
[1633082224596,0.003,3114.6,3114.5,8.2136]
[1633082225411,3.21486,3115.0,3114.9,8.51994019]
[1633082225601,3.21486,3115.0,3114.9,13.65775121]
[1633082225802,3.21486,3115.0,3114.9,12.47804119]
[1633082225997,3.21486,3115.0,3114.9,14.58225874]
[1633082226204,0.003,3115.0,3114.9,14.58225874]
[1633082226458,0.003,3115.0,3114.9,24.43131302]
[1633082226596,0.003,3115.0,3114.9,43.23131302]
[1633082227398,0.003,3115.0,3114.9,44.01005275]
[1633082227607,0.003,3115.0,3114.9,44.01005251]
[1633082227799,0.003,3115.0,3114.9,47.03222195]
[1633082227999,0.003,3115.0,3114.9,48.41402195]
[1633082228199,0.003,3115.0,3114.9,47.48896879]
[1633082228997,0.003,3115.0,3114.9,44.38009232]
[1633082229198,0.003,3115.0,3114.9,44.01007498]
[1633082229461,0.003,3115.0,3114.9,23.91607498]
[1633082229601,0.003,3115.0,3114.9,44.01007498]
[1633082229802,0.003,3115.0,3114.9,14.91607498]
[1633082229997,0.003,3115.0,3114.9,11.26607498]
[1633082230197,0.003,3115.0,3114.9,8.60678092]
[1633082230798,0.003,3115.0,3114.9,12.00583059]
[1633082231003,0.02777801,3115.0,3114.9,30.80583059]
[1633082231200,0.02777801,3115.0,3114.9,40.36103316]
[1633082231399,0.02777801,3115.0,3114.9,39.80583059]
[1633082231601,0.02777801,3115.0,3114.9,40.73122387]
[1633082231999,0.02777801,3115.0,3114.9,40.36107855]
[1633082232461,0.02777801,3115.0,3114.9,39.80583059]
[1633082232799,0.02777801,3115.0,3114.9,40.36114461]
[1633082233004,0.02777801,3115.0,3114.9,40.36114936]
[1633082233607,0.02777801,3115.0,3114.9,39.80583059]
[1633082233803,0.02777801,3115.0,3114.9,40.36123729]
[1633082234201,0.02777801,3115.0,3114.9,39.80583059]
[1633082234601,0.02777801,3115.0,3114.9,40.36132201]
[1633082235600,0.02777801,3115.0,3114.9,39.06732201]
[1633082235801,0.003,3115.0,3114.9,20.26732201]
[1633082236206,0.003,3115.0,3114.9,19.71183059]
[1633082236401,0.003,3115.0,3114.9,20.26734678]
[1633082236402,0.02777801,3115.0,3114.9,20.26734678]
[1633082237602,0.02777801,3115.0,3114.9,21.56134678]
[1633082237801,0.02777801,3115.0,3114.9,21.93169611]
[1633082238007,0.02777801,3115.0,3114.9,21.00583059]
[1633082238602,0.02777801,3115.0,3114.9,39.80583059]
[1633082238806,0.02777801,3115.0,3114.9,40.73167185]
[1633082239003,0.02777801,3115.0,3114.9,39.80583059]
[1633082239402,0.02777801,3115.0,3114.9,40.73167001]
[1633082239804,0.37017337,3115.3,3115.0,5.4]
[1633082240004,0.37017337,3115.3,3115.1,8.16910136]
[1633082240203,0.37017337,3115.3,3115.2,4.05889471]
[1633082240409,0.37017337,3115.3,3115.2,7.72249471]
[1633082240605,0.37017337,3115.3,3115.2,12.76633578]
[1633082241206,0.37017337,3115.3,3115.2,10.8295749]
[1633082241478,0.37017337,3115.3,3115.2,10.28682914]
[1633082241615,0.37017337,3115.3,3115.2,12.39393293]
[1633082245568,0.37017337,3115.3,3115.2,27.39393293]
[1633082245771,0.003,3116.0,3115.6,0.91433733]
[1633082245976,0.003,3116.0,3115.7,10.65272306]
[1633082246171,0.003,3116.0,3115.8,2.56519979]
[1633082246373,0.003,3116.0,3115.9,16.42076045]
[1633082246576,0.003,3116.0,3115.9,18.23733861]
[1633082246772,0.003,3116.0,3115.9,21.08733861]
[1633082246971,0.003,3116.0,3115.9,21.05503046]
[1633082247586,0.003,3116.0,3115.9,43.56199076]
[1633082247787,0.003,3116.0,3115.9,24.76199076]
[1633082247975,0.003,3116.0,3115.9,22.65503046]
[1633082249779,0.003,3116.0,3115.9,56.45503046]
[1633082249983,0.003,3116.0,3115.9,24.76115795]
[1633082250376,0.003,3116.0,3115.9,22.65503046]
[1633082250988,0.003,3116.0,3115.9,24.76073981]
[1633082251379,0.003,3116.0,3115.9,22.66869641]
[1633082251580,0.003,3116.0,3115.9,22.66829074]
[1633082251782,0.003,3116.0,3115.9,20.56298706]
[1633082251979,0.003,3116.0,3115.9,22.66826084]
[1633082252378,0.003,3116.0,3115.9,20.56298706]
[1633082252579,0.003,3116.0,3115.9,22.66789748]
[1633082252781,0.003,3116.0,3115.9,39.36298706]
[1633082252980,0.003,3116.0,3115.9,20.56298706]
[1633082253183,0.003,3116.0,3115.9,22.66783664]
[1633082253383,0.003,3116.0,3115.9,37.66786559]
[1633082253584,0.37943652,3116.0,3115.9,22.66786559]
[1633082253991,0.37943652,3116.0,3115.9,41.46786559]
[1633082254185,0.37943652,3116.0,3115.9,39.36298706]
[1633082254387,0.37943652,3116.0,3115.9,41.46709243]
[1633082254581,0.37943652,3116.0,3115.9,39.36298706]
[1633082255780,0.37943652,3116.0,3115.9,20.56298706]
[1633082256182,0.37943652,3116.0,3115.9,25.37651706]
[1633082256382,0.37943652,3116.0,3115.9,44.17651706]
[1633082257189,0.37943652,3116.0,3115.9,47.61709687]
[1633082257384,0.37943652,3116.0,3115.9,46.32309687]
[1633082257884,0.37943652,3116.0,3115.9,44.21967006]
[1633082258084,0.37943652,3116.0,3115.9,61.32267876]
[1633082258284,0.003,3116.0,3115.9,61.32267876]
[1633082258484,0.003,3116.0,3115.9,44.21967006]
[1633082258683,0.003,3116.0,3115.9,46.32241732]
[1633082258888,0.003,3116.0,3115.9,59.21967006]
[1633082259496,0.003,3116.0,3115.9,44.21967006]
[1633082259687,0.003,3116.0,3115.9,59.21967006]
[1633082260086,0.003,3116.0,3115.9,61.32208106]
[1633082260284,0.003,3116.0,3115.9,46.32208106]
[1633082260485,0.003,3116.0,3115.9,44.21967006]
[1633082261084,0.003,3116.0,3115.9,25.41967006]
[1633082262685,0.003,3116.0,3115.9,44.21967006]
[1633082262888,0.003,3116.0,3115.9,25.41967006]
[1633082265088,0.003,3116.0,3115.9,44.21967006]
[1633082265289,0.003,3116.0,3115.9,46.32113515]
[1633082265489,0.003,3116.0,3115.9,44.21967006]
[1633082265687,0.003,3116.0,3115.9,25.41967006]
[1633082267489,0.003,3116.0,3115.9,44.21967006]
[1633082267889,0.003,3116.0,3115.9,46.32283325]
[1633082268100,0.003,3116.5,3115.9,47.61682627]
[1633082268296,0.003,3117.0,3116.6,1.43654257]
[1633082268600,0.94350855,3117.9,3117.0,8.45]
[1633082268796,0.94350855,3117.9,3117.3,15.0]
[1633082268991,0.94350855,3117.9,3117.4,10.50008465]
[1633082269202,2.48,3117.9,3117.5,3.26884333]
[1633082269392,2.48,3117.9,3117.6,18.60115467]
[1633082269591,2.48,3117.9,3117.6,19.60115467]
[1633082269791,2.48,3117.9,3117.8,22.05]
[1633082269995,2.48,3117.9,3117.8,39.086]
[1633082270197,2.48,3117.9,3117.8,15.6136]
[1633082270592,2.48,3117.9,3117.8,6.6136]
[1633082271398,4.45745466,3117.9,3117.8,6.6136]
[1633082271590,4.45745466,3117.9,3117.8,6.4216]
[1633082271791,3.34798759,3117.9,3117.8,6.4216]
[1633082272193,2.48,3117.9,3117.8,6.4216]
[1633082274494,0.003,3118.0,3117.8,6.4216]
[1633082274800,0.003,3118.0,3117.9,0.96042144]
[1633082274993,0.003,3118.0,3117.9,7.38202144]
[1633082275504,0.003,3118.0,3117.9,10.71494657]
[1633082275897,0.003,3118.0,3117.9,8.58803444]
[1633082276497,0.003,3118.0,3117.9,10.60860382]
[1633082276897,0.003,3118.0,3117.9,10.61455048]
[1633082277092,0.003,3118.0,3117.9,8.57402144]
[1633082277299,0.003,3118.0,3117.9,8.56286444]
[1633082277494,0.003,3118.0,3117.9,7.64591695]
[1633082277897,0.003,3118.0,3117.9,6.64591695]
[1633082278894,0.003,3118.0,3117.9,8.45617708]
[1633082279494,0.003,3118.0,3117.9,10.05617708]
[1633082280500,0.003,3118.0,3117.9,8.24591695]
[1633082285096,0.003,3118.0,3117.9,8.24434306]
[1633082285899,0.82059635,3118.0,3117.9,8.2136]
[1633082286103,0.82059635,3118.0,3117.9,8.0216]
[1633082286299,0.82059635,3118.0,3117.9,1.60552]
[1633082286698,0.82059635,3118.0,3117.5,0.03073884]
[1633082286902,0.82059635,3118.0,3117.3,0.192]